bitfinex/quotes_SOLUSD_20251127
["timestamp","ask_amount","ask_price","bid_price","bid_amount"]
[1764211773891,3.1,143.68,143.63,0.69]
[1764211774106,7.56388549,143.66,143.61,0.69]
[1764211774509,8.21388549,143.67,143.61,0.69]
[1764211774702,7.56388549,143.66,143.61,0.69]
[1764211775308,6.96125016,143.66,143.61,0.69]
[1764211775815,10.06125016,143.66,143.61,0.69]
[1764211776195,10.06021267,143.68,143.61,15.21705646]
[1764211776508,23.87274949,143.66,143.61,0.69]
[1764211776701,7.56388549,143.65,143.61,0.69]
[1764211777007,11.31388549,143.65,143.58,7.56388549]
[1764211777195,14.52573455,143.64,143.59,0.69]
[1764211777399,7.56388549,143.61,143.54,0.2]
[1764211777714,7.56388549,143.59,143.54,0.89]
[1764211778211,16.308864,143.61,143.55,0.69]
[1764211778517,7.56388549,143.6,143.55,0.69]
[1764211778701,24.52274949,143.61,143.55,0.69]
[1764211779109,7.56388549,143.6,143.55,0.69]
[1764211779300,14.52799094,143.6,143.55,0.69]
[1764211779498,6.96410545,143.6,143.55,0.69]
[1764211779910,7.56388549,143.6,143.55,0.69]
[1764211780098,31.48640505,143.61,143.55,0.69]
[1764211780703,7.56388549,143.6,143.55,0.69]
[1764211781105,14.52803647,143.6,143.55,0.69]
[1764211781418,6.96415098,143.6,143.55,0.69]
[1764211781598,16.958864,143.61,143.55,15.21984245]
[1764211781599,6.96336555,143.61,143.55,15.21984245]
[1764211781915,27.08617193,143.63,143.56,7.56388549]
[1764211782215,0.65,143.62,143.56,0.71]
[1764211782412,16.308864,143.6,143.56,0.71]
[1764211783014,23.87274949,143.6,143.56,0.71]
[1764211783215,6.96427327,143.59,143.56,0.71]
[1764211783917,19.408864,143.6,143.56,0.71]
[1764211784414,19.408864,143.6,143.56,7.67565196]
[1764211784923,16.308864,143.6,143.56,6.96565196]
[1764211785103,16.308864,143.6,143.57,0.71]
[1764211785515,3.1,143.61,143.57,7.67519991]
[1764211785818,19.408864,143.62,143.57,7.67519991]
[1764211786216,19.408864,143.62,143.58,0.71]
[1764211786603,26.37189045,143.62,143.58,0.71]
[1764211786808,34.58577594,143.62,143.58,0.71]
[1764211787212,16.308864,143.61,143.58,0.71]
[1764211787405,16.308864,143.61,143.58,7.67475575]
[1764211787810,16.308864,143.61,143.59,0.71]
[1764211788113,23.87274949,143.62,143.58,0.71]
[1764211788418,16.308864,143.61,143.58,0.71]
[1764211788797,2.85434386,143.65,143.58,0.71]
[1764211788996,116.96428878,143.64,143.58,0.71]
[1764211789209,6.96233377,143.63,143.58,0.71]
[1764211789423,6.96233377,143.63,143.58,7.67471367]
[1764211789602,16.308864,143.64,143.59,0.71]
[1764211790306,26.77505949,143.64,143.59,0.71]
[1764211790512,8.2214933,143.63,143.59,0.71]
[1764211790715,23.27071563,143.64,143.59,0.71]
[1764211791030,27.02071563,143.64,143.59,0.71]
[1764211792619,27.02071563,143.64,143.59,7.6742007]
[1764211792826,26.37071563,143.64,143.6,0.71]
[1764211793122,34.59220893,143.64,143.6,0.71]
[1764211793717,33.94220893,143.64,143.6,0.71]
[1764211793927,27.02071563,143.64,143.6,0.71]
[1764211794102,34.59220893,143.64,143.6,0.71]
[1764211794306,19.408864,143.64,143.6,0.71]
[1764211794505,20.058864,143.64,143.6,0.71]
[1764211794705,26.9803573,143.64,143.6,0.71]
[1764211795118,33.942285,143.64,143.6,0.71]
[1764211796056,26.37081631,143.64,143.6,0.71]
[1764211796227,34.59230961,143.64,143.6,0.71]
[1764211797823,16.308864,143.64,143.6,7.67371519]
[1764211798029,6.9614098,143.65,143.6,15.24520849]
[1764211798218,6.9614098,143.65,143.61,0.71]
[1764211798935,6.96087985,143.66,143.61,0.71]
[1764211799132,6.96087985,143.66,143.61,7.67322405]
[1764211799312,7.61087985,143.66,143.61,7.67322405]
[1764211799518,7.61087985,143.66,143.62,0.71]
[1764211799810,16.308864,143.67,143.62,0.71]
[1764211800028,19.408864,143.67,143.62,0.71]
[1764211800630,6.96047933,143.67,143.62,0.71]
[1764211800814,26.36889951,143.68,143.62,0.71]
[1764211801018,26.36889951,143.68,143.62,7.67236226]
[1764211801227,26.36889951,143.68,143.63,0.71]
[1764211801422,33.94039281,143.68,143.63,0.71]
[1764211801621,34.59039281,143.68,143.63,0.71]
[1764211801832,7.5714933,143.67,143.63,0.71]
[1764211802018,23.8803573,143.65,143.6,0.71]
[1764211802219,23.8803573,143.65,143.58,10.6714933]
[1764211802220,7.5714933,143.63,143.58,3.1]
[1764211802431,7.5714933,143.63,143.58,0.71]
[1764211802636,8.2214933,143.63,143.58,0.71]
[1764211802827,7.5714933,143.63,143.58,0.71]
[1764211803021,14.53427557,143.63,143.58,0.71]
[1764211803417,14.53427557,143.63,143.58,7.67475697]
[1764211803819,14.53427557,143.63,143.55,28.08663548]
[1764211804025,8.2214933,143.62,143.58,0.71]
[1764211804721,6.96278227,143.63,143.58,0.71]
[1764211804919,3.75,143.66,143.58,8.2814933]
[1764211805123,3.75,143.66,143.59,6.96427327]
[1764211805124,14.53331366,143.65,143.59,6.96427327]
[1764211805318,14.53331366,143.65,143.59,7.67427327]
[1764211805518,15.18331366,143.65,143.6,0.71]
[1764211806237,7.61182036,143.65,143.6,0.71]
[1764211806431,7.61182036,143.65,143.6,7.6737606]
[1764211806959,23.27010721,143.66,143.61,0.71]
[1764211807238,16.308864,143.66,143.61,0.71]
[1764211808035,109.7714933,143.69,143.61,8.2814933]
[1764211808227,7.5714933,143.69,143.62,7.5714933]
[1764211808426,16.308864,143.68,143.63,6.96233377]
[1764211808625,23.26878059,143.68,143.63,7.66233377]
[1764211808942,3.1,143.7,143.64,8.2714933]
[1764211809143,3.1,143.71,143.65,7.5714933]
[1764211809443,19.408864,143.71,143.66,0.7]
[1764211809630,19.408864,143.71,143.63,81.96233377]
[1764211809830,16.958864,143.7,143.64,0.68]
[1764211810337,23.26800931,143.7,143.64,0.68]
[1764211810641,7.5714933,143.69,143.64,0.68]
[1764211810837,3.1,143.71,143.64,7.64182346]
[1764211811067,16.308864,143.7,143.64,7.64182346]
[1764211811254,23.8803573,143.7,143.65,0.68]
[1764211812224,24.5303573,143.7,143.65,0.68]
[1764211812636,31.48974726,143.7,143.65,0.68]
[1764211813241,31.48974726,143.7,143.65,7.64125682]
[1764211813438,23.91825396,143.7,143.65,7.64125682]
[1764211813641,23.91825396,143.7,143.66,0.68]
[1764211814055,31.48974726,143.7,143.66,0.68]
[1764211814845,7.5714933,143.69,143.66,0.68]
[1764211815235,31.48974726,143.7,143.66,0.68]
[1764211817240,31.48974726,143.7,143.6,0.28432314]
[1764211817241,8.80994492,143.67,143.62,0.68]
[1764211817439,3.75,143.69,143.61,6.96289254]
[1764211817749,17.03143822,143.68,143.61,14.53438584]
[1764211818058,17.03143822,143.68,143.62,0.68]
[1764211818248,6.96039535,143.67,143.62,7.64267458]
[1764211818450,23.26829083,143.69,143.62,7.64267458]
[1764211818758,23.26829083,143.69,143.63,8.2514933]
[1764211818961,8.80994492,143.72,143.65,7.5714933]
[1764211819171,8.2214933,143.73,143.62,99.36972095]
[1764211819172,10.05748973,143.73,143.67,7.5714933]
[1764211819344,3.1,143.73,143.68,7.5714933]
[1764211819734,3.1,143.73,143.69,0.68]
[1764211820438,102.2,143.74,143.69,0.68]
[1764211820439,102.2,143.74,143.7,7.5714933]
[1764211820860,102.2,143.74,143.71,0.68]
[1764211821153,26.36544852,143.75,143.71,0.68]
[1764211821541,23.26544852,143.75,143.71,0.68]
[1764211821742,26.36544852,143.75,143.71,0.68]
[1764211822155,16.308864,143.74,143.71,0.68]
[1764211822538,0.65,143.73,143.68,8.66391942]
[1764211822738,0.65,143.73,143.67,6.96019583]
[1764211822970,14.34386434,143.74,143.67,11.84411525]
[1764211823157,14.34386434,143.74,143.68,0.68]
[1764211823747,5.53391942,143.73,143.68,0.68]
[1764211824148,6.95797383,143.72,143.68,0.68]
[1764211824358,12.49146561,143.73,143.68,0.68]
[1764211824538,3.1,143.72,143.68,0.68]
[1764211825346,3.1,143.72,143.68,7.63987607]
[1764211825941,16.958864,143.71,143.66,7.64075169]
[1764211826163,23.91741986,143.71,143.67,0.68]
[1764211826369,0.65,143.7,143.66,0.68]
[1764211826743,125.46741986,143.71,143.66,0.68]
[1764211826960,126.11741986,143.71,143.66,0.68]
[1764211827158,0.65,143.7,143.66,0.68]
[1764211828350,118.508864,143.71,143.66,0.68]
[1764211828676,119.158864,143.71,143.66,0.68]
[1764211829087,126.1173385,143.71,143.66,0.68]
[1764211829549,5.53391942,143.7,143.64,6.96178125]
[1764211829749,5.53391942,143.7,143.65,0.68]
[1764211830247,4.88391942,143.68,143.63,0.68]
[1764211830663,0.65,143.68,143.63,0.68]
[1764211831474,6.96039535,143.67,143.63,0.68]
[1764211833376,105.95,143.69,143.63,9.46709588]
[1764211833673,112.90942731,143.69,143.63,7.64187151]
[1764211833853,112.90942731,143.69,143.64,0.68]
[1764211834374,112.25942731,143.69,143.64,0.68]
[1764211834548,109.80942731,143.69,143.64,0.68]
[1764211834754,112.90942731,143.69,143.64,0.68]
[1764211835970,112.90942731,143.69,143.64,9.46671432]
[1764211835971,102.2,143.69,143.64,9.46671432]
[1764211836162,109.80946146,143.69,143.64,0.68]
[1764211836354,109.80946146,143.69,143.65,0.68]
[1764211836963,109.15946146,143.69,143.65,0.68]
[1764211837157,109.80946146,143.69,143.65,0.68]
[1764211837362,102.2,143.69,143.65,0.68]
[1764211837873,102.2,143.69,143.65,7.64118442]
[1764211838061,102.2,143.69,143.66,0.68]
[1764211838666,102.2,143.69,143.66,2.50522437]
[1764211838874,102.2,143.69,143.66,0.68]
[1764211840083,109.15945809,143.69,143.64,7.651757]
[1764211840269,0.65,143.68,143.64,7.651757]
[1764211840882,16.308864,143.66,143.61,0.69]
[1764211841097,20.058864,143.66,143.61,0.69]
[1764211842096,27.01985424,143.66,143.61,7.65329143]
[1764211842584,27.01985424,143.66,143.62,0.69]
[1764211842780,16.958864,143.66,143.62,0.69]
[1764211843092,16.958864,143.66,143.6,0.69]
[1764211843093,0.65,143.65,143.6,0.69]
[1764211843294,2.47522437,143.65,143.6,0.69]
[1764211843805,0.65,143.64,143.6,0.69]
[1764211844178,7.61203358,143.64,143.6,0.69]
[1764211844674,16.308864,143.65,143.6,7.65376626]
[1764211845203,16.308864,143.65,143.61,0.69]
[1764211845388,0.65,143.64,143.6,0.69]
[1764211845584,2.47522437,143.64,143.58,3.1]
[1764211845792,18.78408837,143.65,143.6,0.69]
[1764211846291,6.96184906,143.64,143.6,0.69]
[1764211846489,18.78408837,143.65,143.6,7.65375338]
[1764211846687,16.308864,143.64,143.6,7.65375338]
[1764211846900,16.308864,143.65,143.61,0.69]
[1764211847079,16.308864,143.64,143.61,0.69]
[1764211847480,10.06089927,143.66,143.61,0.69]
[1764211847687,19.408864,143.66,143.61,2.51522437]
[1764211847996,19.408864,143.66,143.61,0.69]
[1764211848198,19.408864,143.66,143.62,0.69]
[1764211848395,3.1,143.66,143.62,7.65245961]
[1764211848602,3.1,143.66,143.63,0.69]
[1764211849182,30.69403329,143.68,143.63,0.69]
[1764211849383,0.65,143.67,143.62,0.69]
[1764211849708,19.408864,143.68,143.63,0.69]
[1764211850006,20.058864,143.68,143.63,0.69]
[1764211850206,28.84403498,143.68,143.63,0.69]
[1764211850413,0.65,143.67,143.63,7.65233318]
[1764211851412,16.308864,143.68,143.64,0.69]
[1764211851705,6.95903498,143.7,143.64,2.51522437]
[1764211852197,9.43425935,143.7,143.65,0.69]
[1764211853205,1.82522437,143.69,143.65,0.69]
[1764211853600,9.43425935,143.7,143.65,0.69]
[1764211853799,0.65,143.7,143.65,7.65124189]
[1764211854310,0.65,143.7,143.66,0.69]
[1764211854814,7.6091352,143.7,143.66,0.69]
[1764211856190,9.43435957,143.7,143.66,0.69]
[1764211856395,7.6091352,143.7,143.66,0.69]
[1764211857694,23.26745688,143.71,143.66,7.6507479]
[1764211857895,27.01745688,143.71,143.66,7.6507479]
[1764211858116,27.01745688,143.71,143.66,0.69]
[1764211858117,0.65,143.7,143.66,0.69]
[1764211858311,2.47522437,143.7,143.66,0.69]
[1764211858921,7.60907293,143.7,143.66,0.69]
[1764211860102,0.65,143.69,143.65,0.69]
[1764211860409,2.47522437,143.69,143.66,0.69]
[1764211860721,0.65,143.69,143.66,0.69]
[1764211861016,7.60945786,143.69,143.66,0.69]
[1764211861218,9.43468223,143.69,143.63,6.9621966]
[1764211861417,2.47522437,143.68,143.63,7.6521966]
[1764211861608,102.2,143.69,143.64,0.69]
[1764211861807,109.80947995,143.69,143.64,0.69]
[1764211862008,0.65,143.68,143.64,0.69]
[1764211862206,5.57522437,143.68,143.63,6.9621966]
[1764211862405,5.57522437,143.68,143.63,7.6521966]
[1764211862607,0.65,143.67,143.63,6.9621966]
[1764211862811,5.57522437,143.68,143.64,0.69]
[1764211863214,12.53546382,143.68,143.64,0.69]
[1764211863802,3.1,143.68,143.64,0.69]
[1764211864015,3.75,143.68,143.64,0.69]
[1764211864221,10.71002504,143.68,143.64,0.69]
[1764211864735,3.1,143.68,143.64,7.65178291]
[1764211864944,3.75,143.68,143.64,7.65178291]
[1764211865238,10.06014768,143.68,143.64,0.69]
[1764211865399,1.82522437,143.66,143.61,0.69]
[1764211865829,0.65,143.65,143.61,0.69]
[1764211866206,3.75,143.65,143.6,6.96372486]
[1764211866604,3.75,143.65,143.61,0.69]
[1764211866823,16.308864,143.64,143.59,3.1]
[1764211867120,18.78408837,143.64,143.59,10.75425969]
[1764211867340,18.78408837,143.64,143.6,0.69]
[1764211867341,16.308864,143.64,143.6,0.69]
[1764211867621,0.65,143.63,143.59,7.65425969]
[1764211868008,0.65,143.63,143.59,0.69]
[1764211868209,2.47522437,143.63,143.59,0.69]
[1764211868418,0.65,143.63,143.59,0.69]
[1764211869150,0.65,143.63,143.59,7.65422359]
[1764211869317,25.09594422,143.64,143.59,7.65422359]
[1764211869318,16.308864,143.64,143.59,7.65422359]
[1764211869634,23.92071652,143.64,143.6,0.72]
[1764211871330,16.958864,143.64,143.6,0.72]
[1764211871920,23.27077449,143.64,143.6,7.68373538]
[1764211872330,16.308864,143.64,143.61,0.72]
[1764211873621,102.2,143.67,143.61,9.5083005]
[1764211873822,12.53565315,143.67,143.62,0.72]
[1764211874533,3.75,143.67,143.62,0.72]
[1764211874851,10.71050458,143.67,143.62,0.72]
[1764211875139,16.308864,143.65,143.6,6.96365794]
[1764211875322,16.308864,143.65,143.62,0.72]
[1764211875838,22.32621274,143.67,143.62,7.68257287]
[1764211875839,3.1,143.67,143.62,7.68257287]
[1764211876008,16.308864,143.66,143.62,7.68257287]
[1764211876216,16.308864,143.66,143.63,0.72]
[1764211876423,3.1,143.67,143.63,0.72]
[1764211877027,3.75,143.67,143.63,0.72]
[1764211877314,2.47522437,143.66,143.61,0.72]
[1764211877843,9.43656979,143.66,143.61,0.72]
[1764211878014,16.308864,143.65,143.61,0.72]
[1764211878548,16.958864,143.65,143.61,0.72]
[1764211878742,0.65,143.64,143.6,0.72]
[1764211878929,3.75,143.64,143.6,0.72]
[1764211879862,12.53738205,143.64,143.6,0.72]
[1764211880352,1.82522437,143.63,143.6,0.72]
[1764211880722,18.13408837,143.61,143.57,3.82]
[1764211880928,16.308864,143.61,143.55,6.96621386]
[1764211881126,18.13408837,143.61,143.58,0.72]
[1764211881542,21.23408837,143.61,143.58,0.72]
[1764211881753,28.1974305,143.61,143.58,0.72]
[1764211882051,1.82522437,143.59,143.54,0.2]
[1764211882232,26.94403329,143.55,143.54,0.2]
[1764211882432,30.04403329,143.55,143.54,0.2]
[1764211882640,33.76960586,143.55,143.54,0.2]
[1764211882834,17.46074186,143.55,143.54,0.2]
[1764211883032,25.11880892,143.52,143.51,0.2]
[1764211883235,25.11880892,143.52,143.46,0.2]
[1764211883236,16.308864,143.48,143.46,0.2]
[1764211883542,50.88426806,143.51,143.4,0.2]
[1764211883543,14.01949243,143.47,143.4,0.2]
[1764211883731,9.09426806,143.44,143.4,0.2]
[1764211883930,19.71627285,143.44,143.4,0.2]
[1764211884137,16.59318714,143.44,143.4,0.2]
[1764211884348,37.29991248,143.44,143.4,0.2]
[1764211884539,36.09794649,143.44,143.4,0.2]
[1764211886459,38.89134011,143.44,143.4,0.2]
[1764211887043,28.19652568,143.44,143.4,0.92]
[1764211887240,7.59481443,143.5,143.4,0.2]
[1764211887558,34.82917478,143.56,143.43,0.92]
[1764211887559,16.308864,143.45,143.43,0.92]
[1764211887859,23.90367843,143.45,143.43,0.2]
[1764211888258,7.59481443,143.44,143.43,0.2]
[1764211888652,16.308864,143.45,143.43,0.92]
[1764211889172,3.12,143.46,143.44,0.72]
[1764211889541,8.80994492,143.48,143.44,0.72]
[1764211889759,3.12,143.48,143.44,0.72]
[1764211889960,7.59481443,143.5,143.45,6.97107005]
[1764211890162,3.12,143.49,143.45,6.97107005]
[1764211890338,6.96524343,143.57,143.46,0.72]
[1764211890651,23.90367843,143.51,143.46,0.72]
[1764211890857,27.02367843,143.51,143.46,0.72]
[1764211891462,8.80994492,143.52,143.46,0.72]
[1764211891657,16.40475935,143.52,143.46,0.72]
[1764211892345,16.40475935,143.52,143.47,6.97009827]
[1764211892752,16.40475935,143.52,143.48,0.72]
[1764211892948,7.59481443,143.51,143.48,0.72]
[1764211893548,32.71362335,143.52,143.48,0.72]
[1764211893948,7.59481443,143.51,143.48,0.72]
[1764211894345,32.71362335,143.52,143.48,7.68928109]
[1764211895062,7.59481443,143.51,143.46,6.97058413]
[1764211895262,7.59481443,143.51,143.48,0.72]
[1764211895968,32.71362335,143.52,143.48,0.72]
[1764211896378,32.71362335,143.52,143.48,7.68930041]
[1764211896861,32.71362335,143.52,143.48,0.72]
[1764211897050,7.59481443,143.51,143.48,0.72]
[1764211897451,10.69481443,143.5,143.46,0.72]
[1764211898043,3.1,143.5,143.46,0.72]
[1764211898665,3.1,143.5,143.47,6.97009827]
[1764211899169,3.1,143.5,143.48,0.72]
[1764211899969,3.1,143.5,143.47,6.97009827]
[1764211900171,3.1,143.5,143.48,0.7]
[1764211901258,10.69481443,143.5,143.48,0.7]
[1764211901462,10.69481443,143.5,143.46,0.7]
[1764211901760,7.59481443,143.49,143.46,0.7]
[1764211901966,10.69481443,143.5,143.46,0.7]
[1764211902557,3.1,143.5,143.46,0.7]
[1764211902963,10.69481443,143.5,143.46,7.67011076]
[1764211903378,10.69481443,143.5,143.47,0.7]
[1764211904657,5.95916005,143.5,143.47,0.7]
[1764211904856,3.1,143.5,143.47,0.7]
[1764211905060,3.1,143.5,143.47,7.66999038]
[1764211905469,5.95916005,143.5,143.47,7.66999038]
[1764211905672,3.1,143.5,143.47,7.66999038]
[1764211905853,3.1,143.5,143.48,0.7]
[1764211906053,16.308864,143.52,143.48,0.7]
[1764211906267,19.408864,143.52,143.48,0.7]
[1764211907051,19.408864,143.52,143.49,6.96912676]
[1764211907254,2.85916005,143.54,143.49,9.82828681]
[1764211907255,3.1,143.54,143.49,9.82828681]
[1764211907476,16.308864,143.53,143.5,0.7]
[1764211907972,19.16802405,143.55,143.5,0.7]
[1764211908175,111.00994492,143.54,143.5,0.7]
[1764211908553,114.10994492,143.54,143.5,0.7]
[1764211909179,123.93589973,143.54,143.5,0.7]
[1764211909367,114.10994492,143.54,143.5,7.66860748]
[1764211909573,116.96910497,143.54,143.5,7.66860748]
[1764211909758,116.96910497,143.54,143.51,0.7]
[1764211910686,2.85916005,143.53,143.49,0.7]
[1764211911182,8.80994492,143.58,143.52,9.82683006]
[1764211911364,114.10994492,143.58,143.52,9.82683006]
[1764211911562,16.308864,143.57,143.53,0.7]
[1764211912785,19.16802405,143.57,143.53,0.7]
[1764211913771,19.16802405,143.57,143.53,7.66706759]
[1764211914372,19.16802405,143.57,143.53,0.7]
[1764211914582,8.80994492,143.56,143.54,0.7]
[1764211914884,19.16802405,143.57,143.54,0.7]
[1764211915272,16.308864,143.57,143.54,7.66658029]
[1764211915482,16.308864,143.56,143.54,7.66658029]
[1764211915966,12.92396656,143.58,143.54,0.7]
[1764211916165,16.308864,143.57,143.54,0.7]
[1764211916368,22.26802405,143.57,143.54,0.7]
[1764211916785,19.408864,143.57,143.54,0.7]
[1764211916988,22.26802405,143.57,143.54,0.7]
[1764211917171,16.308864,143.56,143.54,7.6666137]
[1764211919368,16.308864,143.56,143.49,20.52244077]
[1764211919574,128.3337584,143.56,143.52,0.7]
[1764211919979,131.4337584,143.56,143.52,0.7]
[1764211920571,131.4337584,143.56,143.52,7.6674739]
[1764211920771,124.46802405,143.56,143.53,0.7]
[1764211921380,118.508864,143.56,143.53,0.7]
[1764211922175,8.80994492,143.55,143.51,7.66810376]
[1764211922581,8.80994492,143.55,143.52,0.7]
[1764211923477,8.80994492,143.55,143.52,7.66751587]
[1764211923682,118.508864,143.56,143.52,7.66751587]
[1764211923886,118.508864,143.56,143.53,0.7]
[1764211924295,102.2,143.56,143.53,0.7]
[1764211925790,102.2,143.56,143.54,6.96669917]
[1764211926299,102.2,143.56,143.55,0.7]
[1764211927810,9.09426806,143.57,143.49,0.66]
[1764211927988,2.85916005,143.52,143.49,0.66]
[1764211928189,2.85916005,143.53,143.49,0.66]
[1764211928388,8.80994492,143.53,143.49,0.66]
[1764211928809,19.408864,143.54,143.49,0.66]
[1764211929406,22.26802405,143.54,143.49,0.66]
[1764211929705,19.408864,143.54,143.49,0.66]
[1764211929899,19.408864,143.54,143.49,7.62905424]
[1764211930296,19.408864,143.54,143.5,0.72]
[1764211930813,19.16802405,143.51,143.48,0.72]
[1764211931001,16.308864,143.51,143.49,0.72]
[1764211932000,19.16802405,143.51,143.49,0.72]
[1764211932195,16.308864,143.51,143.49,0.72]
[1764211932612,16.308864,143.51,143.49,7.6890928]
[1764211932789,25.11880892,143.53,143.49,7.6890928]
[1764211932995,16.308864,143.53,143.5,0.72]
[1764211933202,105.3,143.54,143.5,0.72]
[1764211933396,102.2,143.54,143.5,0.72]
[1764211933590,105.05916005,143.54,143.5,0.72]
[1764211933794,102.2,143.54,143.5,0.72]
[1764211933995,102.2,143.54,143.51,6.96815552]
[1764211934402,102.2,143.54,143.52,0.72]
[1764211935617,102.2,143.54,143.52,7.68763755]
[1764211936016,102.2,143.54,143.53,0.72]
[1764211936316,16.308864,143.55,143.53,0.72]
[1764211936515,3.1,143.57,143.53,0.72]
[1764211936814,5.95916005,143.6,143.53,3.57916005]
[1764211937019,2.85916005,143.59,143.54,0.72]
[1764211937397,22.26802405,143.6,143.55,6.96621386]
[1764211937619,2.85916005,143.59,143.55,6.96621386]
[1764211937927,22.26802405,143.6,143.56,0.72]
[1764211938232,11.66910497,143.58,143.54,0.72]
[1764211940040,16.308864,143.58,143.54,7.6864127]
[1764211940327,16.308864,143.58,143.54,10.54557275]
[1764211940528,16.308864,143.58,143.55,0.72]
[1764211940727,3.1,143.6,143.55,0.72]
[1764211940913,102.2,143.63,143.55,0.72]
[1764211940914,6.96195108,143.64,143.56,2.85916005]
[1764211941116,6.96195108,143.64,143.57,2.85916005]
[1764211941117,12.92111113,143.64,143.57,2.85916005]
[1764211941321,8.80994492,143.63,143.58,0.72]
[1764211942016,25.11880892,143.63,143.58,0.72]
[1764211942200,25.11880892,143.63,143.59,6.96427327]
[1764211942402,11.86910497,143.65,143.59,6.96427327]
[1764211942701,11.86910497,143.65,143.55,0.72]
[1764211942702,16.308864,143.58,143.55,0.72]
[1764211942902,19.16802405,143.58,143.55,0.72]
[1764211943120,16.308864,143.58,143.55,0.72]
[1764211943305,19.16802405,143.58,143.55,0.72]
[1764211943512,16.308864,143.58,143.55,0.72]
[1764211944627,16.308864,143.58,143.55,7.6860145]
[1764211944832,16.308864,143.58,143.56,0.72]
[1764211946208,26.98563378,143.61,143.56,7.68553275]
[1764211946530,16.308864,143.61,143.56,12.57888379]
[1764211946729,3.1,143.62,143.57,5.61335104]
[1764211946913,16.308864,143.61,143.57,5.61335104]
[1764211947113,3.1,143.62,143.58,0.72]
[1764211947720,3.1,143.62,143.58,7.68433043]
[1764211948330,3.1,143.62,143.59,0.72]
[1764211948528,102.2,143.63,143.59,5.61335104]
[1764211948728,16.308864,143.64,143.59,0.72]
[1764211948936,16.308864,143.64,143.6,0.72]
[1764211949430,21.20221504,143.64,143.6,0.72]
[1764211949832,8.80994492,143.63,143.6,0.72]
[1764211950433,9.00994492,143.65,143.6,0.72]
[1764211950635,16.308864,143.64,143.6,0.72]
[1764211951540,8.80994492,143.63,143.6,0.72]
[1764211951845,13.70329596,143.63,143.6,0.72]
[1764211952238,8.80994492,143.63,143.6,0.72]
[1764211953319,16.308864,143.64,143.6,0.72]
[1764211953518,23.27078591,143.64,143.6,0.72]
[1764211953724,28.16413695,143.64,143.6,0.72]
[1764211955834,23.27078591,143.64,143.6,0.72]
[1764211956037,16.308864,143.64,143.6,7.68373823]
[1764211956747,16.308864,143.64,143.6,6.96373823]
[1764211956949,23.27074512,143.64,143.6,7.68373823]
[1764211957320,23.27074512,143.64,143.61,0.72]
[1764211957526,28.16409616,143.64,143.61,0.72]
[1764211958250,16.308864,143.64,143.61,0.72]
[1764211960555,16.308864,143.64,143.61,12.57638622]
[1764211960748,16.308864,143.64,143.61,7.68303518]
[1764211960955,16.308864,143.64,143.62,0.69]
[1764211961758,0.2,143.65,143.62,0.69]
[1764211962658,0.2,143.65,143.62,7.65273089]
[1764211963167,0.2,143.65,143.62,6.96273089]
[1764211963371,0.2,143.65,143.63,0.69]
[1764211966088,0.2,143.65,143.63,7.65231593]
[1764211966553,0.2,143.65,143.64,0.69]
[1764211968683,0.2,143.65,143.62,6.96268186]
[1764211968889,0.2,143.65,143.64,0.69]
[1764211969877,0.2,143.65,143.64,7.65184906]
[1764211970969,0.2,143.65,143.63,0.69]
[1764211973283,0.2,143.65,143.63,7.65231777]
[1764211973989,0.2,143.65,143.63,6.96231777]